[Event "Fagernes Chess GM-Swiss 2025"]
[Site "Fagernes"]
[Date "2025.04.13"]
[Round "1.8"]
[White "Southcott-Moyers, Indy"]
[Black "Kulaots, Kaido"]
[Result "1/2-1/2"]
[Annotator "ChessBase"]
[ECO "E11"]
[WhiteElo "2227"]
[BlackElo "2510"]
[PlyCount "58"]
[EventDate "2025.04.12"]
[EventCountry "NOR"]
[SourceTitle "playchess.com"]
[Source "ChessBase"]
[SourceQuality "1"]
[TimeControl "40/6000+30:2400+30"]

1. d4 {[%emt 0:00:04]} Nf6 {[%emt 0:00:37]} 2. c4 {[%emt 0:00:08]} e6 {[%emt 0:00:27]} 3. Nf3 {[%emt 0:00:05]} Bb4+ {[%emt 0:00:17]} 4. Bd2 {[%emt 0:00:13]} a5 {[%emt 0:00:11]} 5. a3 {[%emt 0:00:05]} Bxd2+ {[%emt 0:00:24]} 6. Qxd2 {[%emt 0:00:11]} O-O {[%emt 0:04:36]} 7. Nc3 {[%emt 0:02:46]} d5 {[%emt 0:02:39]} 8. e3 {[%emt 0:01:45]} Nbd7 {[%emt 0:01:04]} 9. Rc1 {[%emt 0:06:46]} c6 {[%emt 0:13:49]} 10. Bd3 {[%emt 0:10:27]} Qe7 {[%emt 0:04:31]} 11. cxd5 {[%emt 0:03:43]} exd5 {[%emt 0:00:41]} 12. Qc2 {[%emt 0:04:52]} Re8 {[%emt 0:03:28]} 13. O-O {[%emt 0:06:11]} Nf8 {[%emt 0:24:09]} 14. Na4 {[%emt 0:10:57]} Ng6 {[%emt 0:05:56]} 15. Nb6 {[%emt 0:05:35]} Ra7 {[%emt 0:02:12]} 16. Qc5 {[%emt 0:02:21]} Qxc5 {[%emt 0:11:43]} 17. dxc5 {[%emt 0:02:30]} Nd7 {[%emt 0:05:22]} 18. Nxd7 {[%emt 0:03:28]} Bxd7 {[%emt 0:00:07]} 19. Bxg6 {[%emt 0:00:05]} hxg6 {[%emt 0:00:17]} 20. Nd4 {[%emt 0:00:59]} a4 {[%emt 0:03:41]} 21. Rc3 {[%emt 0:10:51]} g5 {[%emt 0:00:50]} 22. f4 {[%emt 0:09:27]} gxf4 {[%emt 0:01:16]} 23. Rxf4 {[%emt 0:00:20]} Kf8 {[%emt 0:11:06]} 24. Nf3 {[%emt 0:04:24]} Ke7 {[%emt 0:04:52]} 25. e4 {[%emt 0:03:23]} dxe4 {[%emt 0:01:47]} 26. Rxe4+ {[%emt 0:00:08]} Kf8 {[%emt 0:03:34]} 27. Rxe8+ {[%emt 0:05:53]} Kxe8 {[%emt 0:01:25]} 28. Ne5 {[%emt 0:01:43]} Be6 {[%emt 0:00:26]} 29. Nc4 {[%emt 0:00:25]} Bxc4 {[%emt 0:02:31]} 1/2-1/2

[Event "Fagernes Chess GM-Swiss 2025"]
[Site "Fagernes"]
[Date "2025.04.13"]
[Round "1.9"]
[White "Ghasi, Ameet K"]
[Black "Eliseev, Sergey"]
[Result "1/2-1/2"]
[Annotator "ChessBase"]
[ECO "D02"]
[WhiteElo "2502"]
[BlackElo "2226"]
[PlyCount "147"]
[EventDate "2025.04.12"]
[EventCountry "NOR"]
[SourceTitle "playchess.com"]
[Source "ChessBase"]
[SourceQuality "1"]
[TimeControl "40/6000+30:2400+30"]

1. Nf3 {[%emt 0:01:52]} d5 {[%emt 0:00:28]} 2. g3 {[%emt 0:00:27]} Nf6 {[%emt 0:00:09]} 3. Bg2 {[%emt 0:00:03]} c6 {[%emt 0:00:05]} 4. O-O {[%emt 0:00:05]} Bg4 {[%emt 0:00:05]} 5. d4 {[%emt 0:00:34]} e6 {[%emt 0:00:46]} 6. h3 {[%emt 0:01:50]} Bh5 {[%emt 0:01:17]} 7. c4 {[%emt 0:00:49]} Be7 {[%emt 0:04:11]} 8. Nc3 {[%emt 0:02:42]} Ne4 {[%emt 0:07:38]} 9. Qb3 {[%emt 0:28:29]} Qb6 {[%emt 0:04:17]} 10. Nxe4 {[%emt 0:12:45]} dxe4 {[%emt 0:02:03]} 11. Ne5 {[%emt 0:01:57]} Qxb3 {[%emt 0:14:05]} 12. axb3 {[%emt 0:00:19]} f6 {[%emt 0:00:50]} 13. g4 {[%emt 0:01:17]} fxe5 {[%emt 0:00:08]} 14. gxh5 {[%emt 0:00:04]} exd4 {[%emt 0:00:13]} 15. e3 {[%emt 0:09:24]} e5 {[%emt 0:24:18]} 16. exd4 {[%emt 0:01:08]} exd4 {[%emt 0:01:06]} 17. Bxe4 {[%emt 0:07:38]} O-O {[%emt 0:03:20]} 18. Bd2 {[%emt 0:04:23]} Nd7 {[%emt 0:02:10]} 19. Rae1 {[%emt 0:02:12]} Bd6 {[%emt 0:11:32]} 20. h6 {[%emt 0:08:17]} g6 {[%emt 0:03:07]} 21. f4 {[%emt 0:01:30]} Nc5 {[%emt 0:03:06]} 22. Bc2 {[%emt 0:01:37]} Rae8 {[%emt 0:04:43]} 23. Rxe8 {[%emt 0:16:33]} Rxe8 {[%emt 0:00:17]} 24. Bd1 {[%emt 0:00:32]} Ne4 {[%emt 0:05:20]} 25. Be1 {[%emt 0:00:29]} d3 {[%emt 0:02:07]} 26. Kg2 {[%emt 0:01:43]} d2 {[%emt 0:03:04]} 27. Bh4 {[%emt 0:00:55]} Bb4 {[%emt 0:02:09]} 28. f5 {[%emt 0:03:27]} g5 {[%emt 0:01:19]} 29. f6 {[%emt 0:00:07]} Re6 {[%emt 0:04:47]} 30. Bg3 {[%emt 0:00:16]} Nxf6 {[%emt 0:01:00]} 31. Bf2 {[%emt 0:01:16]} Ne4 {[%emt 0:03:27]} 32. Bxa7 {[%emt 0:00:42]} Rxh6 {[%emt 0:00:21]} 33. Be3 {[%emt 0:00:59]} Re6 {[%emt 0:00:53]} 34. Bc2 {[%emt 0:00:35]} h6 {[%emt 0:01:15]} 35. Rd1 {[%emt 0:00:22]} Nf6 {[%emt 0:01:24]} 36. Kf3 {[%emt 0:00:13]} Rd6 {[%emt 0:00:41]} 37. Ke2 {[%emt 0:00:31]} Nh5 {[%emt 0:00:12]} 38. Kf3 {[%emt 0:00:52]} Nf4 {[%emt 0:00:51]} 39. h4 {[%emt 0:00:17]} Ne6 {[%emt 0:00:39]} 40. hxg5 {[%emt 0:00:20]} hxg5 {[%emt 0:00:11]} 41. Ke4 {[%emt 0:04:55]} Rd7 {[%emt 0:13:08]} 42. Rg1 {[%emt 0:07:56]} Kf7 {[%emt 0:02:11]} 43. Bd1 {[%emt 0:04:01]} Re7 {[%emt 0:07:14]} 44. Kd3 {[%emt 0:13:50]} Nf4+ {[%emt 0:03:46]} 45. Bxf4 {[%emt 0:00:07]} gxf4 {[%emt 0:00:02]} 46. Rg4 {[%emt 0:11:37]} Rd7+ {[%emt 0:00:54]} 47. Ke4 {[%emt 0:00:37]} Bd6 {[%emt 0:00:11]} 48. c5 {[%emt 0:00:32]} Bc7 {[%emt 0:00:50]} 49. b4 {[%emt 0:00:30]} Kf6 {[%emt 0:00:55]} 50. Rg8 {[%emt 0:00:33]} Be5 {[%emt 0:04:18]} 51. Rf8+ {[%emt 0:00:06]} Kg7 {[%emt 0:00:18]} 52. Re8 {[%emt 0:01:33]} Bxb2 {[%emt 0:03:05]} 53. Kxf4 {[%emt 0:00:02]} Bc3 {[%emt 0:00:37]} 54. Ke3 {[%emt 0:01:04]} Bxb4 {[%emt 0:00:24]} 55. Re5 {[%emt 0:00:07]} Kf6 {[%emt 0:00:44]} 56. Rh5 {[%emt 0:00:01]} Rg7 {[%emt 0:02:52]} 57. Rh4 {[%emt 0:01:23]} Ba5 {[%emt 0:03:02]} 58. Ra4 {[%emt 0:00:19]} Re7+ {[%emt 0:00:46]} 59. Kd3 {[%emt 0:00:11]} Rd7+ {[%emt 0:00:15]} 60. Kc2 {[%emt 0:00:21]} Bc7 {[%emt 0:01:06]} 61. Bf3 {[%emt 0:00:33]} Bg3 {[%emt 0:01:32]} 62. Kd1 {[%emt 0:00:43]} Be5 {[%emt 0:02:31]} 63. Kc2 {[%emt 0:00:30]} Kg5 {[%emt 0:00:26]} 64. Rg4+ {[%emt 0:00:10]} Kf5 {[%emt 0:00:13]} 65. Rg2 {[%emt 0:00:57]} Kf4 {[%emt 0:00:25]} 66. Bd1 {[%emt 0:00:30]} Rd5 {[%emt 0:00:38]} 67. Rxd2 {[%emt 0:00:04]} Rxc5+ {[%emt 0:00:04]} 68. Kb1 {[%emt 0:00:14]} b5 {[%emt 0:00:45]} 69. Rc2 {[%emt 0:00:18]} Rxc2 {[%emt 0:01:19]} 70. Kxc2 {[%emt 0:00:35]} c5 {[%emt 0:00:06]} 71. Bh5 {[%emt 0:00:09]} c4 {[%emt 0:00:32]} 72. Be8 {[%emt 0:00:13]} b4 {[%emt 0:00:05]} 73. Bf7 {[%emt 0:00:11]} c3 {[%emt 0:00:59]} 74. Bb3 {[%emt 0:00:05]} 1/2-1/2

[Event "Fagernes Chess GM-Swiss 2025"]
[Site "Fagernes"]
[Date "2025.04.13"]
[Round "1.10"]
[White "Brattgjerd, Isak Vinh"]
[Black "Rozentalis, Eduardas"]
[Result "1/2-1/2"]
[Annotator "ChessBase"]
[ECO "B04"]
[WhiteElo "2202"]
[BlackElo "2481"]
[PlyCount "75"]
[EventDate "2025.04.12"]
[EventCountry "NOR"]
[SourceTitle "playchess.com"]
[Source "ChessBase"]
[SourceQuality "1"]
[TimeControl "40/6000+30:2400+30"]

1. e4 {[%emt 0:00:32]} Nf6 {[%emt 0:00:17]} 2. e5 {[%emt 0:00:15]} Nd5 {[%emt 0:00:04]} 3. d4 {[%emt 0:00:22]} d6 {[%emt 0:00:06]} 4. Nf3 {[%emt 0:01:01]} g6 {[%emt 0:01:12]} 5. Be2 {[%emt 0:00:34]} Bg7 {[%emt 0:01:02]} 6. c4 {[%emt 0:01:37]} Nb6 {[%emt 0:01:13]} 7. exd6 {[%emt 0:00:07]} cxd6 {[%emt 0:00:31]} 8. h3 {[%emt 0:01:01]} O-O {[%emt 0:00:45]} 9. O-O {[%emt 0:00:05]} Bf5 {[%emt 0:01:48]} 10. Nc3 {[%emt 0:00:42]} Nc6 {[%emt 0:03:23]} 11. Be3 {[%emt 0:01:57]} d5 {[%emt 0:00:47]} 12. c5 {[%emt 0:23:14]} Nc4 {[%emt 0:01:02]} 13. Bc1 {[%emt 0:00:17]} b6 {[%emt 0:07:44]} 14. cxb6 {[%emt 0:15:19]} axb6 {[%emt 0:00:54]} 15. b3 {[%emt 0:01:01]} Nd6 {[%emt 0:01:37]} 16. Bf4 {[%emt 0:14:30]} Ne4 {[%emt 0:06:00]} 17. Nb5 {[%emt 0:00:41]} Na7 {[%emt 0:04:05]} 18. Nxa7 {[%emt 0:05:05]} Rxa7 {[%emt 0:01:15]} 19. a4 {[%emt 0:00:23]} Qa8 {[%emt 0:17:42]} 20. Rc1 {[%emt 0:12:02]} Rc8 {[%emt 0:00:27]} 21. g4 {[%emt 0:02:06]} Bd7 {[%emt 0:04:47]} 22. Qd3 {[%emt 0:00:25]} Nd6 {[%emt 0:01:03]} 23. Ne5 {[%emt 0:04:45]} Be8 {[%emt 0:00:40]} 24. Qf3 {[%emt 0:01:22]} Rxc1 {[%emt 0:13:08]} 25. Rxc1 {[%emt 0:00:07]} b5 {[%emt 0:00:08]} 26. axb5 {[%emt 0:01:14]} Bxb5 {[%emt 0:05:54]} 27. Bxb5 {[%emt 0:00:19]} Nxb5 {[%emt 0:00:06]} 28. Qd3 {[%emt 0:00:04]} Rb7 {[%emt 0:05:09]} 29. Rc5 {[%emt 0:03:58]} Nd6 {[%emt 0:00:45]} 30. Nc6 {[%emt 0:01:42]} Bf8 {[%emt 0:02:44]} 31. Bxd6 {[%emt 0:08:04]} exd6 {[%emt 0:00:11]} 32. Rc3 {[%emt 0:00:27]} Rc7 {[%emt 0:09:44]} 33. Qc2 {[%emt 0:00:05]} Qa6 {[%emt 0:00:29]} 34. Kg2 {[%emt 0:01:02]} Qb6 {[%emt 0:01:20]} 35. Nb4 {[%emt 0:01:12]} Rxc3 {[%emt 0:00:38]} 36. Qxc3 {[%emt 0:00:03]} Qb7 {[%emt 0:01:05]} 37. Nc2 {[%emt 0:02:00]} Bg7 {[%emt 0:00:47]} 38. Qf3 {[%emt 0:00:30]} 1/2-1/2

[Event "Fagernes Chess GM-Swiss 2025"]
[Site "Fagernes"]
[Date "2025.04.13"]
[Round "1.11"]
[White "Kvaloy, Aksel Bu"]
[Black "Andersen, Morten"]
[Result "1-0"]
[Annotator "ChessBase"]
[ECO "B07"]
[WhiteElo "2481"]
[BlackElo "2200"]
[PlyCount "75"]
[EventDate "2025.04.12"]
[EventCountry "NOR"]
[SourceTitle "playchess.com"]
[Source "ChessBase"]
[SourceQuality "1"]
[TimeControl "40/6000+30:2400+30"]

1. d4 {[%emt 0:00:05]} Nf6 {[%emt 0:00:10]} 2. Nf3 {[%emt 0:00:04]} g6 {[%emt 0:00:13]} 3. Bg5 {[%emt 0:00:29]} Bg7 {[%emt 0:02:59]} 4. Nbd2 {[%emt 0:00:09]} O-O {[%emt 0:03:32]} 5. c3 {[%emt 0:00:07]} h6 {[%emt 0:01:41]} 6. Bh4 {[%emt 0:00:31]} d6 {[%emt 0:01:18]} 7. e4 {[%emt 0:00:51]} Nbd7 {[%emt 0:01:52]} 8. Bd3 {[%emt 0:01:20]} e5 {[%emt 0:04:43]} 9. O-O {[%emt 0:01:04]} Qe8 {[%emt 0:01:23]} 10. Re1 {[%emt 0:01:33]} Nh5 {[%emt 0:01:14]} 11. Bf1 {[%emt 0:07:24]} Kh8 {[%emt 0:03:01]} 12. Nc4 {[%emt 0:01:16]} b6 {[%emt 0:04:19]} 13. dxe5 {[%emt 0:14:37]} Nxe5 {[%emt 0:08:51]} 14. Nfxe5 {[%emt 0:09:22]} dxe5 {[%emt 0:00:35]} 15. Ne3 {[%emt 0:00:13]} Nf4 {[%emt 0:07:30]} 16. Qc2 {[%emt 0:03:30]} a5 {[%emt 0:10:47]} 17. a4 {[%emt 0:01:26]} Ba6 {[%emt 0:05:01]} 18. Bxa6 {[%emt 0:01:25]} Rxa6 {[%emt 0:00:04]} 19. Rad1 {[%emt 0:03:27]} Ra8 {[%emt 0:04:40]} 20. Nd5 {[%emt 0:10:42]} Nxd5 {[%emt 0:01:14]} 21. Rxd5 {[%emt 0:00:10]} Qe6 {[%emt 0:04:57]} 22. Qd3 {[%emt 0:02:47]} f5 {[%emt 0:03:29]} 23. f3 {[%emt 0:01:34]} f4 {[%emt 0:03:05]} 24. Rd7 {[%emt 0:09:34]} g5 {[%emt 0:01:46]} 25. Bf2 {[%emt 0:00:11]} Rac8 {[%emt 0:02:45]} 26. Rd1 {[%emt 0:01:49]} Bf6 {[%emt 0:09:11]} 27. Qd5 {[%emt 0:02:04]} Qxd5 {[%emt 0:05:24]} 28. R1xd5 {[%emt 0:01:25]} Kg8 {[%emt 0:01:44]} 29. Kf1 {[%emt 0:01:22]} Rf7 {[%emt 0:03:53]} 30. Ke2 {[%emt 0:01:14]} Kf8 {[%emt 0:01:43]} 31. c4 {[%emt 0:07:10]} c5 {[%emt 0:03:22]} 32. R7d6 {[%emt 0:00:37]} Rb8 {[%emt 0:00:47]} 33. Be1 {[%emt 0:00:29]} Kg7 {[%emt 0:02:16]} 34. Bc3 {[%emt 0:00:47]} Re7 {[%emt 0:00:28]} 35. Rc6 {[%emt 0:00:19]} Kf7 {[%emt 0:01:10]} 36. Rdd6 {[%emt 0:00:17]} Bg7 {[%emt 0:00:30]} 37. Rxb6 {[%emt 0:00:08]} Reb7 {[%emt 0:00:15]} 38. Rd7+ {[%emt 0:02:29]} 1-0

[Event "Fagernes Chess GM-Swiss 2025"]
[Site "Fagernes"]
[Date "2025.04.13"]
[Round "1.12"]
[White "Westrum, Kim Roger Hansen"]
[Black "Blomqvist, Erik"]
[Result "0-1"]
[Annotator "ChessBase"]
[ECO "C13"]
[WhiteElo "2193"]
[BlackElo "2475"]
[PlyCount "66"]
[EventDate "2025.04.12"]
[EventCountry "NOR"]
[SourceTitle "playchess.com"]
[Source "ChessBase"]
[SourceQuality "1"]
[TimeControl "40/6000+30:2400+30"]

1. e4 {[%emt 0:01:16]} e6 {[%emt 0:00:07]} 2. d4 {[%emt 0:00:35]} d5 {[%emt 0:00:08]} 3. Nc3 {[%emt 0:00:24]} Nf6 {[%emt 0:00:28]} 4. Bg5 {[%emt 0:00:23]} dxe4 {[%emt 0:00:20]} 5. Nxe4 {[%emt 0:00:15]} Bd7 {[%emt 0:00:22]} 6. a4 {[%emt 0:29:25]} Be7 {[%emt 0:20:15]} 7. Bxf6 {[%emt 0:03:22]} gxf6 {[%emt 0:00:52]} 8. c3 {[%emt 0:04:34]} Bc6 {[%emt 0:03:33]} 9. Ng3 {[%emt 0:01:22]} Qd5 {[%emt 0:02:43]} 10. Nf3 {[%emt 0:22:18]} h5 {[%emt 0:03:06]} 11. Bd3 {[%emt 0:03:12]} h4 {[%emt 0:11:59]} 12. Be4 {[%emt 0:00:57]} Qd6 {[%emt 0:00:59]} 13. Bxc6+ {[%emt 0:00:24]} Qxc6 {[%emt 0:00:20]} 14. Nf1 {[%emt 0:00:22]} h3 {[%emt 0:00:58]} 15. g3 {[%emt 0:00:52]} Nd7 {[%emt 0:00:35]} 16. Ne3 {[%emt 0:01:47]} O-O-O {[%emt 0:08:33]} 17. Qe2 {[%emt 0:11:19]} a6 {[%emt 0:06:08]} 18. O-O {[%emt 0:06:22]} Nb6 {[%emt 0:03:51]} 19. a5 {[%emt 0:04:04]} Nd5 {[%emt 0:00:45]} 20. Nxd5 {[%emt 0:02:24]} Rxd5 21. Ne1 {[%emt 0:03:48]} Rhh5 {[%emt 0:04:41]} 22. c4 {[%emt 0:00:00]} Rdf5 {[%emt 0:06:06]} 23. f4 {[%emt 0:00:00]} Rxa5 {[%emt 0:00:46]} 24. Nf3 {[%emt 0:02:54]} Rxa1 {[%emt 0:00:12]} 25. Rxa1 {[%emt 0:00:02]} Rh8 {[%emt 0:00:10]} 26. c5 {[%emt 0:01:15]} Rd8 {[%emt 0:01:43]} 27. b4 {[%emt 0:03:27]} Kb8 {[%emt 0:00:33]} 28. Ra5 {[%emt 0:00:17]} f5 {[%emt 0:01:43]} 29. b5 {[%emt 0:03:15]} Qe4 {[%emt 0:00:17]} 30. Kf2 {[%emt 0:00:08]} Rxd4 {[%emt 0:04:57]} 31. Nxd4 {[%emt 0:03:37]} Qxd4+ {[%emt 0:00:08]} 32. Qe3 {[%emt 0:00:14]} Qb4 {[%emt 0:01:17]} 33. Qe1 {[%emt 0:00:39]} Bxc5+ {[%emt 0:00:07]} 0-1

[Event "Fagernes Chess GM-Swiss 2025"]
[Site "Fagernes"]
[Date "2025.04.13"]
[Round "1.13"]
[White "Bazakutsa, Svyatoslav"]
[Black "Olsen, William Alexander"]
[Result "1-0"]
[Annotator "ChessBase"]
[ECO "E44"]
[WhiteElo "2474"]
[BlackElo "2188"]
[PlyCount "79"]
[EventDate "2025.04.12"]
[EventCountry "NOR"]
[SourceTitle "playchess.com"]
[Source "ChessBase"]
[SourceQuality "1"]
[TimeControl "40/6000+30:2400+30"]

1. d4 {[%emt 0:00:16]} Nf6 {[%emt 0:00:31]} 2. c4 {[%emt 0:00:07]} e6 {[%emt 0:00:11]} 3. Nc3 {[%emt 0:00:08]} Bb4 {[%emt 0:00:23]} 4. e3 {[%emt 0:00:08]} b6 {[%emt 0:00:59]} 5. Nge2 {[%emt 0:00:14]} Bb7 {[%emt 0:02:06]} 6. a3 {[%emt 0:00:40]} Be7 {[%emt 0:00:11]} 7. d5 {[%emt 0:00:41]} O-O {[%emt 0:09:25]} 8. Ng3 {[%emt 0:04:03]} d6 {[%emt 0:09:16]} 9. Be2 {[%emt 0:02:44]} Nbd7 {[%emt 0:07:42]} 10. e4 {[%emt 0:01:31]} Re8 {[%emt 0:00:35]} 11. O-O {[%emt 0:03:08]} Bf8 {[%emt 0:03:42]} 12. Be3 {[%emt 0:05:44]} g6 {[%emt 0:10:29]} 13. Re1 {[%emt 0:06:05]} Bg7 {[%emt 0:03:06]} 14. Qc2 {[%emt 0:03:58]} h5 {[%emt 0:08:07]} 15. Nf1 {[%emt 0:06:38]} Ng4 {[%emt 0:03:42]} 16. Rad1 {[%emt 0:42:11]} Nxe3 {[%emt 0:06:54]} 17. Nxe3 {[%emt 0:00:16]} Nc5 {[%emt 0:00:36]} 18. Bf3 {[%emt 0:04:06]} a5 {[%emt 0:04:13]} 19. b4 {[%emt 0:01:32]} axb4 {[%emt 0:00:33]} 20. axb4 {[%emt 0:00:02]} Na6 {[%emt 0:00:22]} 21. Rb1 {[%emt 0:04:12]} Qf6 {[%emt 0:01:19]} 22. Nb5 {[%emt 0:00:23]} Qf4 {[%emt 0:02:56]} 23. Qd1 {[%emt 0:02:22]} Rad8 {[%emt 0:11:58]} 24. g3 {[%emt 0:02:08]} Qe5 {[%emt 0:02:26]} 25. Bg2 {[%emt 0:01:26]} exd5 {[%emt 0:07:42]} 26. Nxd5 {[%emt 0:05:10]} c6 {[%emt 0:08:08]} 27. f4 {[%emt 0:01:15]} Qe6 {[%emt 0:00:10]} 28. Nbc7 {[%emt 0:00:52]} Nxc7 {[%emt 0:00:25]} 29. Nxc7 {[%emt 0:00:09]} Qxc4 {[%emt 0:00:08]} 30. Nxe8 {[%emt 0:00:08]} Bd4+ {[%emt 0:04:41]} 31. Kh1 {[%emt 0:00:13]} Rxe8 {[%emt 0:00:01]} 32. e5 {[%emt 0:12:35]} dxe5 {[%emt 0:00:41]} 33. fxe5 {[%emt 0:00:02]} h4 {[%emt 0:02:30]} 34. Qg4 {[%emt 0:01:01]} h3 {[%emt 0:00:41]} 35. Qxh3 {[%emt 0:00:11]} Bc3 {[%emt 0:00:36]} 36. Qd7 {[%emt 0:00:14]} Qe6 {[%emt 0:00:34]} 37. Qxb7 {[%emt 0:00:11]} Bxe1 {[%emt 0:00:01]} 38. Rxe1 {[%emt 0:00:03]} c5 {[%emt 0:00:21]} 39. bxc5 {[%emt 0:00:54]} bxc5 {[%emt 0:00:01]} 40. Bd5 {[%emt 0:00:43]} 1-0

[Event "Fagernes Chess GM-Swiss 2025"]
[Site "Fagernes"]
[Date "2025.04.13"]
[Round "1.14"]
[White "Hebbar, Eshaan"]
[Black "Kaasen, Tor Fredrik"]
[Result "1/2-1/2"]
[Annotator "ChessBase"]
[ECO "D46"]
[WhiteElo "2175"]
[BlackElo "2472"]
[PlyCount "103"]
[EventDate "2025.04.12"]
[EventCountry "NOR"]
[SourceTitle "playchess.com"]
[Source "ChessBase"]
[SourceQuality "1"]
[TimeControl "40/6000+30:2400+30"]

1. d4 {[%emt 0:00:04]} Nf6 {[%emt 0:00:37]} 2. c4 {[%emt 0:00:08]} e6 {[%emt 0:00:34]} 3. Nf3 {[%emt 0:00:10]} d5 {[%emt 0:00:38]} 4. Nc3 {[%emt 0:00:18]} c6 {[%emt 0:00:18]} 5. e3 {[%emt 0:00:18]} Nbd7 {[%emt 0:00:45]} 6. Qc2 {[%emt 0:00:15]} Bd6 {[%emt 0:00:49]} 7. Bd3 {[%emt 0:00:20]} O-O {[%emt 0:01:13]} 8. O-O {[%emt 0:00:26]} dxc4 {[%emt 0:00:46]} 9. Bxc4 {[%emt 0:00:11]} a6 {[%emt 0:00:18]} 10. a4 {[%emt 0:10:01]} Qc7 {[%emt 0:00:44]} 11. e4 {[%emt 0:04:01]} e5 {[%emt 0:01:48]} 12. dxe5 {[%emt 0:01:05]} Nxe5 {[%emt 0:02:16]} 13. Nxe5 {[%emt 0:00:11]} Bxe5 {[%emt 0:00:08]} 14. h3 {[%emt 0:00:05]} Re8 {[%emt 0:06:11]} 15. Re1 {[%emt 0:05:34]} Be6 {[%emt 0:07:15]} 16. Bd3 {[%emt 0:09:35]} Rad8 {[%emt 0:07:40]} 17. Be3 {[%emt 0:07:10]} c5 {[%emt 0:13:08]} 18. Rad1 {[%emt 0:03:44]} h6 {[%emt 0:00:00]} 19. Bf1 {[%emt 0:12:22]} Qc6 {[%emt 0:01:13]} 20. f3 {[%emt 0:21:41]} Qb6 {[%emt 0:07:33]} 21. Qf2 {[%emt 0:06:49]} Qc7 {[%emt 0:04:10]} 22. Rxd8 {[%emt 0:04:39]} Rxd8 {[%emt 0:00:33]} 23. Qc2 {[%emt 0:03:25]} c4 {[%emt 0:09:07]} 24. Rd1 {[%emt 0:01:47]} Rxd1 {[%emt 0:05:41]} 25. Qxd1 {[%emt 0:00:08]} Nh5 {[%emt 0:00:54]} 26. Bf2 {[%emt 0:03:55]} Qe7 {[%emt 0:03:56]} 27. Nd5 {[%emt 0:02:38]} Qg5 {[%emt 0:07:54]} 28. h4 {[%emt 0:00:16]} Qd8 {[%emt 0:00:11]} 29. Bxc4 {[%emt 0:00:21]} Ng3 {[%emt 0:06:51]} 30. Bc5 {[%emt 0:18:11]} Qxh4 {[%emt 0:12:44]} 31. Ne7+ {[%emt 0:00:00]} Kh7 {[%emt 0:00:06]} 32. Qd8 {[%emt 0:00:00]} Qh1+ {[%emt 0:00:39]} 33. Kf2 {[%emt 0:00:00]} Nxe4+ {[%emt 0:00:09]} 34. fxe4 {[%emt 0:00:00]} Qh4+ {[%emt 0:00:06]} 35. Ke3 {[%emt 0:00:00]} Qe1+ {[%emt 0:06:46]} 36. Be2 {[%emt 0:00:00]} Qc1+ {[%emt 0:00:14]} 37. Kf2 {[%emt 0:00:00]} Qxc5+ {[%emt 0:00:41]} 38. Kf3 {[%emt 0:00:00]} f5 {[%emt 0:01:33]} 39. exf5 {[%emt 0:00:00]} Qc1 {[%emt 0:02:00]} 40. Bd3 {[%emt 0:00:08]} Qd1+ {[%emt 0:00:41]} 41. Kf2 {[%emt 0:06:32]} Qd2+ {[%emt 0:04:24]} 42. Kf3 {[%emt 0:07:51]} Qf4+ {[%emt 0:17:15]} 43. Ke2 {[%emt 0:00:09]} Qg4+ {[%emt 0:00:02]} 44. Kf1 {[%emt 0:13:41]} Qd1+ {[%emt 0:04:34]} 45. Kf2 {[%emt 0:00:06]} Qd2+ {[%emt 0:00:11]} 46. Kf3 {[%emt 0:00:05]} Qf4+ {[%emt 0:00:40]} 47. Ke2 {[%emt 0:00:06]} Qg4+ {[%emt 0:00:04]} 48. Kf1 {[%emt 0:00:48]} Qd1+ {[%emt 0:00:05]} 49. Kf2 Bc4 {[%emt 0:00:02]} 50. f6+ {[%emt 0:00:08]} g6 {[%emt 0:00:01]} 51. Nxg6 {[%emt 0:00:28]} Bxd3 52. Qxd3 {[%emt 0:00:02]} 1/2-1/2

[Event "Fagernes Chess GM-Swiss 2025"]
[Site "Fagernes"]
[Date "2025.04.13"]
[Round "1.15"]
[White "Willow, Jonah B"]
[Black "Skaar, Ben Samuel Groth"]
[Result "1-0"]
[Annotator "ChessBase"]
[ECO "B31"]
[WhiteElo "2471"]
[BlackElo "2167"]
[PlyCount "79"]
[EventDate "2025.04.12"]
[EventCountry "NOR"]
[SourceTitle "playchess.com"]
[Source "ChessBase"]
[SourceQuality "1"]
[TimeControl "40/6000+30:2400+30"]

1. e4 {[%emt 0:00:18]} c5 {[%emt 0:00:15]} 2. Nf3 {[%emt 0:00:28]} Nc6 {[%emt 0:01:10]} 3. Bb5 {[%emt 0:00:24]} g6 {[%emt 0:00:07]} 4. Bxc6 {[%emt 0:00:34]} dxc6 {[%emt 0:00:06]} 5. d3 {[%emt 0:00:08]} Bg7 {[%emt 0:00:05]} 6. a4 {[%emt 0:00:45]} Nf6 {[%emt 0:06:03]} 7. a5 {[%emt 0:00:40]} O-O {[%emt 0:00:17]} 8. h3 {[%emt 0:00:32]} Qc7 {[%emt 0:06:44]} 9. Nc3 {[%emt 0:02:58]} Rd8 {[%emt 0:09:42]} 10. Qe2 {[%emt 0:05:10]} Rb8 {[%emt 0:04:39]} 11. O-O {[%emt 0:11:23]} Nh5 {[%emt 0:04:54]} 12. e5 {[%emt 0:12:22]} Bh8 {[%emt 0:00:47]} 13. Re1 {[%emt 0:10:17]} Ng7 {[%emt 0:07:32]} 14. Bf4 {[%emt 0:01:38]} Be6 {[%emt 0:03:51]} 15. Ne4 {[%emt 0:04:25]} b6 {[%emt 0:01:28]} 16. Ra4 {[%emt 0:11:40]} Qd7 {[%emt 0:11:52]} 17. Neg5 {[%emt 0:02:27]} Ra8 {[%emt 0:04:21]} 18. Bd2 {[%emt 0:09:12]} Bd5 {[%emt 0:23:35]} 19. Rh4 {[%emt 0:06:15]} h5 {[%emt 0:07:29]} 20. Rf4 {[%emt 0:04:15]} Rf8 {[%emt 0:01:34]} 21. Bc3 {[%emt 0:03:55]} Bxf3 {[%emt 0:03:05]} 22. Qxf3 {[%emt 0:05:08]} Qd5 {[%emt 0:07:05]} 23. Qg3 {[%emt 0:07:17]} Ne6 {[%emt 0:00:39]} 24. Nxe6 {[%emt 0:06:27]} Qxe6 {[%emt 0:00:06]} 25. Rh4 {[%emt 0:00:43]} Bg7 {[%emt 0:01:02]} 26. f4 {[%emt 0:00:26]} Kh7 {[%emt 0:02:57]} 27. Qf2 {[%emt 0:01:29]} Rh8 {[%emt 0:00:29]} 28. g4 {[%emt 0:00:25]} Kg8 {[%emt 0:00:08]} 29. f5 {[%emt 0:01:02]} Qd5 {[%emt 0:00:21]} 30. gxh5 {[%emt 0:00:35]} Rxh5 {[%emt 0:00:47]} 31. Rxh5 {[%emt 0:00:18]} gxh5 {[%emt 0:00:05]} 32. Re4 {[%emt 0:00:55]} Bh6 {[%emt 0:01:32]} 33. Qh4 {[%emt 0:00:53]} Kh7 {[%emt 0:00:30]} 34. Qxh5 {[%emt 0:00:36]} Rg8+ {[%emt 0:00:08]} 35. Kh2 {[%emt 0:00:37]} Rg5 {[%emt 0:01:09]} 36. Qf3 {[%emt 0:00:05]} e6 {[%emt 0:00:38]} 37. fxe6 {[%emt 0:00:51]} Qxe6 {[%emt 0:00:22]} 38. Rf4 {[%emt 0:00:22]} Rxe5 {[%emt 0:00:51]} 39. Bxe5 {[%emt 0:00:31]} Qxe5 {[%emt 0:00:22]} 40. Qe4+ {[%emt 0:00:03]} 1-0